fUSD/lending_fUSD_20240424
["ID","MTS","AMOUNT","RATE_DAILY","PERIOD"]
[323411331,1713972688060,-500.0,0.00012876,2]
[323411332,1713972688069,-500.0,0.00012876,2]
[323411333,1713972688079,-500.0,0.00012876,2]
[323411334,1713972688089,-654.28,0.00012876,2]
[323411335,1713972688099,-1067.54,0.00012876,2]
[323411336,1713972688108,-1076.71,0.00012876,2]
[323411337,1713972688118,-3086.19,0.00012876,2]
[323411338,1713972688127,-500.0,0.00012876,2]
[323411339,1713972688136,-633.26,0.00012876,2]
[323411340,1713972688145,-791.36,0.00012876,2]
[323411341,1713972688155,-696.78,0.00012876,2]
[323411342,1713972688165,-500.0,0.00012876,2]
[323411343,1713972688174,-500.0,0.00012876,2]
[323411344,1713972688183,-500.0,0.00012876,2]
[323411345,1713972688193,-784.71,0.00012876,2]
[323411346,1713972688202,-504.52858263,0.00012876,2]
[323411347,1713972688212,-500.0,0.00012876,2]
[323411348,1713972688221,-3249.5,0.00012876,2]
[323411349,1713972688231,-1125.11,0.00012876,2]
[323411350,1713972688241,-533.27,0.00012876,2]
[323411351,1713972688251,-500.0,0.00012876,2]
[323411352,1713972688260,-1424.26,0.00012876,2]
[323411353,1713972688269,-500.0,0.00012876,2]
[323411354,1713972688279,-564.3,0.00012876,2]
[323411355,1713972688289,-568.9,0.00012876,2]
[323411356,1713972688298,-500.0,0.00012876,2]
[323411357,1713972688310,-1394.24,0.00012876,2]
[323411358,1713972688320,-500.0,0.00012876,2]
[323411359,1713972688331,-500.0,0.00012876,2]
[323411360,1713972688341,-566.48,0.00012876,2]
[323411361,1713972688350,-500.0,0.00012876,2]
[323411362,1713972688360,-1372.53,0.00012876,2]
[323411363,1713972688369,-349.18,0.00012876,2]
[323411364,1713972688378,-500.0,0.00012876,2]
[323411365,1713972688387,-500.0,0.00012876,2]
[323411366,1713972688396,-1080.02,0.00012876,2]
[323411367,1713972688406,-500.0,0.00012876,2]
[323411368,1713972688415,-1230.02,0.00012876,2]
[323411369,1713972688424,-1228.13,0.00012876,2]
[323411370,1713972688433,-3443.03,0.00012876,2]
[323411371,1713972688442,-500.0,0.00012876,2]
[323411372,1713972688451,-500.0,0.00012876,2]
[323411373,1713972688461,-500.0,0.00012876,2]
[323411374,1713972688470,-1268.11,0.00012876,2]
[323411375,1713972688479,-665.52,0.00012876,2]
[323411376,1713972688489,-1096.66,0.00012876,2]
[323411377,1713972688498,-500.0,0.00012876,2]
[323411378,1713972688508,-500.0,0.00012876,2]
[323411379,1713972688517,-500.0,0.00012876,2]
[323411380,1713972688526,-624.74,0.00012876,2]
[323411381,1713972688535,-500.0,0.00012876,2]
[323411382,1713972688545,-845.37,0.00012876,2]
[323411383,1713972688557,-2620.88,0.00012876,2]
[323411384,1713972688567,-772.01,0.00012876,2]
[323411385,1713972688576,-500.0,0.00012876,2]
[323411386,1713972688586,-500.0,0.00012876,2]
[323411387,1713972688596,-978.64,0.00012876,2]
[323411388,1713972688606,-3073.52,0.00012876,2]
[323411389,1713972688615,-1159.61,0.00012876,2]
[323411390,1713972688625,-861.87,0.00012876,2]
[323411391,1713972688635,-500.0,0.00012876,2]
[323411392,1713972688644,-500.0,0.00012876,2]
[323411393,1713972688653,-193.46405204,0.00012876,2]
[323411394,1713972688663,-2800.84,0.00012876,2]
[323411395,1713972688672,-500.0,0.00012876,2]
[323411396,1713972688681,-1320.4,0.00012876,2]
[323411397,1713972688691,-500.0,0.00012876,2]
[323411398,1713972688700,-710.12,0.00012876,2]
[323411399,1713972688711,-833.98,0.00012876,2]
[323411400,1713972688722,-1246.57,0.00012876,2]
[323411401,1713972688732,-1307.58,0.00012876,2]
[323411402,1713972688741,-500.0,0.00012876,2]
[323411403,1713972688753,-3170.21,0.00012876,2]
[323411404,1713972688763,-500.0,0.00012876,2]
[323411405,1713972688773,-500.0,0.00012876,2]
[323411406,1713972688783,-500.0,0.00012876,2]
[323411407,1713972688792,-563.85,0.00012876,2]
[323411408,1713972688807,-550.23,0.00012876,2]
[323411409,1713972688817,-363.31976249,0.00012876,2]
[323411410,1713972688827,-626.56,0.00012876,2]
[323411411,1713972688837,-500.0,0.00012876,2]
[323411412,1713972688848,-845.5,0.00012876,2]
[323411413,1713972688857,-500.0,0.00012876,2]
[323411414,1713972688867,-1358.18,0.00012876,2]
[323411415,1713972688877,-500.0,0.00012876,2]
[323411416,1713972688886,-548.11,0.00012876,2]
[323411417,1713972688896,-500.0,0.00012876,2]
[323411418,1713972688906,-1248.75,0.00012876,2]
[323411419,1713972688916,-500.0,0.00012876,2]
[323411420,1713972688926,-620.64,0.00012876,2]
[323411421,1713972688936,-500.0,0.00012876,2]
[323411422,1713972688945,-1085.54,0.00012876,2]
[323411423,1713972688955,-3695.85,0.00012876,2]
[323411424,1713972688965,-595.28,0.00012876,2]
[323411425,1713972688975,-4345.73,0.00012876,2]
[323411426,1713972688984,-500.0,0.00012876,2]
[323411427,1713972688994,-477.98676228,0.00012876,2]
[323411428,1713972689003,-1838.97,0.00012876,2]
[323411429,1713972689012,-19689.72,0.00012876,2]
[323411430,1713972689022,-931.39,0.00012876,2]
[323411431,1713972689031,-13159.88,0.00012876,2]
[323411432,1713972689041,-934.35,0.00012876,2]
[323411433,1713972689056,-2828.5,0.00012876,2]
[323411434,1713972689066,-4719.15,0.00012876,2]
[323411435,1713972689075,-2388.43,0.00012876,2]
[323411436,1713972689085,-1617.75,0.00012876,2]
[323411437,1713972689094,-1854.7,0.00012876,2]
[323411438,1713972689104,-1115.25,0.00012876,2]
[323411439,1713972689113,-11881.79,0.00012876,2]
[323411440,1713972689123,-500.0,0.00012876,2]
[323411441,1713972689133,-500.0,0.00012876,2]
[323411442,1713972689142,-2868.9,0.00012876,2]
[323411443,1713972689152,-5730.95,0.00012876,2]
[323411444,1713972689161,-500.0,0.00012876,2]
[323411445,1713972689170,-1256.99,0.00012876,2]
[323411446,1713972689180,-8052.36,0.00012876,2]
[323411447,1713972689190,-555.41,0.00012876,2]
[323411448,1713972689199,-4920.04,0.00012876,2]
[323411449,1713972689208,-597.11,0.00012876,2]
[323411450,1713972689217,-723.01,0.00012876,2]
[323411451,1713972689227,-1058.73,0.00012876,2]
[323411452,1713972689236,-3304.8,0.00012876,2]
[323411453,1713972689245,-4539.95,0.00012876,2]
[323411454,1713972689254,-790.94,0.00012876,2]
[323411455,1713972689263,-305.08,0.00012876,2]
[323411456,1713972689273,-1301.34,0.00012876,2]
[323411457,1713972689282,-687.37,0.00012876,2]
[323411458,1713972689291,-16038.23,0.00012876,2]
[323411459,1713972689302,-855.99,0.00012876,2]
[323411460,1713972689312,-629.44,0.00012876,2]
[323411461,1713972689321,-500.0,0.00012876,2]
[323411462,1713972689331,-3620.06,0.00012876,2]
[323411463,1713972689340,-1866.93,0.00012876,2]
[323411464,1713972689350,-500.0,0.00012876,2]
[323411465,1713972689360,-2433.3,0.00012876,2]
[323411466,1713972689370,-17065.59,0.00012876,2]
[323411467,1713972689379,-851.32,0.00012876,2]
[323411468,1713972689390,-975.71,0.00012876,2]
[323411469,1713972689399,-2542.97,0.00012876,2]
[323411470,1713972689409,-7110.65,0.00012876,2]
[323411471,1713972689418,-6033.3,0.00012876,2]
[323411472,1713972689428,-2367.96,0.00012876,2]
[323411473,1713972689437,-3222.18,0.00012876,2]
[323411474,1713972689447,-500.0,0.00012876,2]
[323411475,1713972689457,-2895.44,0.00012876,2]
[323411476,1713972689467,-500.0,0.00012876,2]
[323411477,1713972689477,-599.74,0.00012876,2]
[323411478,1713972689487,-14734.03,0.00012876,2]
[323411479,1713972689497,-8385.86,0.00012876,2]
[323411480,1713972689507,-1851.6,0.00012876,2]
[323411481,1713972689517,-4654.63,0.00012876,2]
[323411482,1713972689527,-2612.87,0.00012876,2]
[323411483,1713972689536,-1643.7,0.00012876,2]
[323411484,1713972689546,-1060.62,0.00012876,2]
[323411485,1713972689558,-2728.08,0.00012876,2]
[323411486,1713972689568,-8695.65,0.00012876,2]
[323411487,1713972689578,-500.0,0.00012876,2]
[323411488,1713972689588,-902.79,0.00012876,2]
[323411489,1713972689598,-1318.18,0.00012876,2]
[323411490,1713972689608,-12150.74,0.00012876,2]
[323411491,1713972689619,-3049.85,0.00012876,2]
[323411492,1713972689630,-2672.62,0.00012876,2]
[323411493,1713972689640,-1193.28,0.00012876,2]
[323411494,1713972689650,-6525.87,0.00012876,2]
[323411495,1713972689660,-1664.31,0.00012876,2]
[323411496,1713972689670,-500.0,0.00012876,2]
[323411497,1713972689680,-2403.21,0.00012876,2]
[323411498,1713972689689,-548.73,0.00012876,2]
[323411499,1713972689699,-4989.83,0.00012876,2]
[323411500,1713972689712,-760.02,0.00012876,2]
[323411501,1713972689722,-4065.38,0.00012876,2]
[323411502,1713972689733,-500.0,0.00012876,2]
[323411503,1713972689743,-1076.29,0.00012876,2]
[323411504,1713972689755,-3724.0,0.00012876,2]
[323411505,1713972689765,-7492.04,0.00012876,2]
[323411506,1713972689775,-4778.51,0.00012876,2]
[323411507,1713972689785,-3147.21,0.00012876,2]
[323411508,1713972689796,-534.84,0.00012876,2]
[323411509,1713972689810,-790.71,0.00012876,2]
[323411510,1713972689820,-4329.81,0.00012876,2]
[323411511,1713972689830,-3653.59,0.00012876,2]
[323411512,1713972689840,-500.0,0.00012876,2]
[323411513,1713972689850,-12972.63,0.00012876,2]
[323411514,1713972689860,-489.01,0.00012876,2]
[323411515,1713972689870,-5641.48,0.00012876,2]
[323411516,1713972689879,-3078.34,0.00012876,2]
[323411517,1713972689890,-3412.99,0.00012876,2]
[323411518,1713972689900,-2013.09,0.00012876,2]
[323411519,1713972689909,-781.56,0.00012876,2]
[323411520,1713972689920,-6234.96,0.00012876,2]
[323411521,1713972689930,-640.29,0.00012876,2]
[323411522,1713972689939,-500.0,0.00012876,2]
[323411523,1713972689950,-1639.01,0.00012876,2]
[323411524,1713972689960,-500.0,0.00012876,2]
[323411525,1713972689970,-1922.4,0.00012876,2]
[323411526,1713972689979,-4353.75,0.00012876,2]
[323411527,1713972689988,-25725.22,0.00012876,2]
[323411528,1713972689998,-7612.26,0.00012876,2]
[323411529,1713972690008,-1777.69,0.00012876,2]
[323411530,1713972690018,-1989.21,0.00012876,2]
[323411531,1713972690028,-4334.84,0.00012876,2]
[323411532,1713972690037,-3287.13,0.00012876,2]
[323411533,1713972690047,-4313.83,0.00012876,2]
[323411534,1713972690061,-5011.84,0.00012876,2]
[323411535,1713972690071,-500.0,0.00012876,2]
[323411536,1713972690081,-2329.6,0.00012876,2]
[323411537,1713972690092,-2599.4,0.00012876,2]
[323411538,1713972690102,-9090.79,0.00012876,2]
[323411539,1713972690112,-2277.96,0.00012876,2]
[323411540,1713972690121,-4982.16,0.00012876,2]
[323411541,1713972690131,-11688.3,0.00012876,2]
[323411542,1713972690140,-203.08,0.00012876,2]
[323411543,1713972690150,-854.69,0.00012876,2]
[323411544,1713972690160,-4589.61,0.00012876,2]
[323411545,1713972690170,-1692.96,0.00012876,2]
[323411546,1713972690179,-6430.96,0.00012876,2]
[323411547,1713972690190,-1586.02,0.00012876,2]
[323411548,1713972690199,-1369.43,0.00012876,2]
[323411549,1713972690209,-6194.34,0.00012876,2]
[323411550,1713972690218,-500.0,0.00012876,2]
[323411551,1713972690228,-3386.35,0.00012876,2]
[323411552,1713972690237,-4369.05,0.00012876,2]
[323411553,1713972690247,-1138.4,0.00012876,2]
[323411554,1713972690257,-2280.22,0.00012876,2]
[323411555,1713972690267,-500.0,0.00012876,2]
[323411556,1713972690277,-8475.7,0.00012876,2]
[323411557,1713972690287,-500.0,0.00012876,2]
[323411558,1713972690297,-724.74,0.00012876,2]
[323411559,1713972690310,-745.37,0.00012876,2]
[323411560,1713972690320,-500.0,0.00012876,2]
[323411561,1713972690330,-500.0,0.00012876,2]
[323411562,1713972690339,-16683.43,0.00012876,2]
[323411563,1713972690349,-3940.04,0.00012876,2]
[323411564,1713972690360,-1686.48,0.00012876,2]
[323411565,1713972690370,-3355.0,0.00012876,2]
[323411566,1713972690380,-1653.42,0.00012876,2]
[323411567,1713972690391,-500.0,0.00012876,2]
[323411568,1713972690402,-11869.86,0.00012876,2]
[323411569,1713972690412,-641.36,0.00012876,2]
[323411570,1713972690423,-11626.0,0.00012876,2]
[323411571,1713972690433,-756.21,0.00012876,2]
[323411572,1713972690442,-3406.58,0.00012876,2]
[323411573,1713972690452,-500.0,0.00012876,2]
[323411574,1713972690462,-3128.5,0.00012876,2]
[323411575,1713972690472,-4233.38,0.00012876,2]
[323411576,1713972690482,-1049.02,0.00012876,2]
[323411577,1713972690492,-500.0,0.00012876,2]
[323411578,1713972690502,-500.0,0.00012876,2]
[323411579,1713972690511,-500.0,0.00012876,2]
[323411580,1713972690521,-750.0,0.00012876,2]
[323411581,1713972690532,-500.0,0.00012876,2]
[323411582,1713972690542,-579.65,0.00012876,2]
[323411583,1713972690553,-500.0,0.00012876,2]
[323411584,1713972690567,-500.0,0.00012876,2]
[323411585,1713972690576,-6601.66,0.00012876,2]
[323411586,1713972690586,-500.0,0.00012876,2]
[323411587,1713972690596,-2607.02,0.00012876,2]
[323411588,1713972690606,-500.0,0.00012876,2]
[323411589,1713972690616,-641.52,0.00012876,2]
[323411590,1713972690626,-500.0,0.00012876,2]
[323411591,1713972690635,-500.0,0.00012876,2]
[323411592,1713972690645,-500.0,0.00012876,2]
[323411593,1713972690655,-5956.68,0.00012876,2]
[323411594,1713972690665,-3595.77,0.00012876,2]
[323411595,1713972690675,-5392.76,0.00012876,2]
[323411596,1713972690685,-500.0,0.00012876,2]
[323411597,1713972690695,-500.0,0.00012876,2]
[323411598,1713972690705,-617.44,0.00012876,2]
[323411599,1713972690715,-530.34,0.00012876,2]
[323411600,1713972690727,-8756.5,0.00012876,2]
[323411601,1713972690736,-57797.41455688,0.00012888,2]
[323411602,1713972690746,-1000.0,0.00012896,2]
[323411603,1713972690756,-500.0,0.00012896,2]
[323411604,1713972690767,-365.97088217,0.000129,2]
[323411605,1713972690777,-740.07839972,0.000129,2]
[323411606,1713972690786,-585.26366027,0.000129,2]
[323411607,1713972690796,-150.0,0.00012967,2]
[323411608,1713972690810,-1001.96909012,0.00012976,2]
[323411609,1713972690821,-151.17847543,0.00012978,2]
[323411610,1713972690831,-150.0,0.00012985,2]
[323411611,1713972690841,-290.86049612,0.00012985,2]
[323411612,1713972690850,-20570.8303377,0.00012989,2]
[323411613,1713972690862,-755.9050162,0.00012989,2]
[323411614,1713972690871,-488.9291731,0.00012989,2]
[323411615,1713972690881,-860.6899004,0.00012989,2]
[323411616,1713972690891,-465.7222699,0.00012989,2]
[323411617,1713972690900,-1273.1954208,0.00012989,2]
[323411618,1713972690911,-566.19018584,0.00012989,2]
[323411619,1713972690920,-3281.9938223,0.00012991,2]
[323411620,1713972690930,-3441.1293306,0.00012991,2]
[323411621,1713972690940,-21619.0846007,0.00012991,2]
[323411622,1713972690950,-22667.3388636,0.00012991,2]
[323411623,1713972690959,-794.4246405,0.00012991,2]
[323411624,1713972690970,-832.9442647,0.00012991,2]
[323411625,1713972690980,-513.8441659,0.00012991,2]
[323411626,1713972690990,-538.7591587,0.00012991,2]
[323411627,1713972691000,-487.6239162,0.00012991,2]
[323411628,1713972691010,-509.5255625,0.00012991,2]
[323411629,1713972691019,-1333.0703239,0.00012991,2]
[323411630,1713972691029,-1392.945227,0.00012991,2]
[323411631,1713972691040,-1508.46514869,0.00012992,2]
[323411632,1713972691050,-346537.66248809,0.00012998,2]
[323411633,1713972691063,-934.25948257,0.00012999,2]
[323411634,1713972691073,-1880473.11792199,0.00013,2]
[323411635,1713972691922,-1547596.26434697,0.00013,2]
[323411636,1713972691935,-855580.3400721,0.00013,2]
[323411637,1713972691948,-1318254.18198454,0.00013,2]
[323411638,1713972691959,-384.83468693,0.00013,2]
[323411639,1713972692665,-1004.98186152,0.00010958,2]
[323411640,1713972692677,-291.01463965,0.00010958,2]
[323411641,1713972692690,-702.5190202,0.00010958,2]
[323411642,1713972692732,-1248.03447863,0.00010958,2]
[323411643,1713972692741,-2395.82721682,0.00011232,2]
[323411644,1713972692755,-850.72278318,0.00011232,2]
[323411645,1713972692765,-3246.55,0.00011506,2]
[323411646,1713972692775,-2220.99275983,0.0001178,2]
[323411647,1713972692788,-1025.55724017,0.0001178,2]
[323411648,1713972692799,-276.87103096,0.00012153,2]
[323411649,1713972692812,-2429.42295931,0.00013,2]
[323411650,1713972692824,-1893.0,0.00013,2]
[323411651,1713972692836,-533.95411627,0.00013,2]
[323411652,1713972692847,-530.9025,0.00013,2]
[323411653,1713972692859,-453.0,0.00013,2]
[323411654,1713972692871,-778.27148591,0.00013,2]
[323411655,1713972692896,-156440.42108667,0.00013,2]
[323411656,1713972692907,-709.03983979,0.00013,2]
[323411657,1713972692918,-301.60400004,0.00013,2]
[323411658,1713972692929,-806.3099995,0.00013,2]
[323411659,1713972692941,-369714.52852364,0.00013,2]
[323411660,1713972692961,-1268.139164,0.00012054,2]
[323411661,1713972692973,-1978.410836,0.00012054,2]
[323411662,1713972692982,-11301.589164,0.00013,2]
[323411663,1713972693001,-292.00081544,0.00013,2]
[323411664,1713972693532,-3246.55,0.00012328,2]
[323411665,1713972693543,-3246.55,0.00012602,2]
[323411666,1713972693554,-11739.78608565,0.000128,2]
[323411667,1713972693564,-3246.55,0.00012876,2]
[323411668,1713972693574,-233382.61542964,0.00013,2]
[323411669,1713972693586,-603.92688297,0.00013,2]
[323411670,1713972693598,-9755.35,0.00013,2]
[323411671,1713972693609,-3248.3558,0.00013,2]
[323411672,1713972693621,-1825.79,0.00013,2]
[323411673,1713972693633,-375.93228978,0.00013,2]
[323411674,1713972693644,-5094.04658628,0.00013,2]
[323411675,1713972693656,-91046.86599629,0.00013,2]
[323411676,1713972693758,-3921.07546982,0.00013,2]
[323411677,1713972693771,-12611.24482125,0.00013,2]
[323411678,1713972693786,-7308.57798,0.00013,2]
[323411679,1713972693799,-1415.15819015,0.00013,2]
[323411680,1713972693817,-322.872,0.00013,2]
[323411681,1713972693829,-781.573696,0.00013,2]
[323411682,1713972693841,-355.9757531,0.00013,2]
[323411683,1713972693934,-6640.65516025,0.00013,2]
[323411684,1713972693946,-3369.61984,0.00013,2]
[323411686,1713972946969,151.0,0.00020469,120]
[323411687,1713973133553,383.48,8.554e-05,2]
[323411721,1713973288179,812.41422243,8.554e-05,2]
[323411781,1713973546976,151.0,0.00019455,120]
[323411788,1713973567357,890.77,0.00025975,90]
[323411808,1713973686515,418.75091594,0.0001,2]
[323411810,1713973717975,200.0,9.724e-05,2]
[323411812,1713973726153,185.77,9.761e-05,2]
[323411813,1713973739703,536.93,8.219e-05,2]
[323411814,1713973744274,2000.0,0.00025975,90]
[323411822,1713973778700,186.95,9.783e-05,2]
[323411823,1713973779010,186.95,9.808e-05,2]
[323411824,1713973779221,186.95,9.832e-05,2]
[323411825,1713973787549,288.9,9.783e-05,2]
[323411844,1713973832431,-871.73200863,0.00010014,2]
[323411846,1713973832440,-100.70031537,0.00010014,2]
[323411852,1713973832495,-771.03169326,0.00010014,2]
[323411853,1713973832504,-2321.9784957,0.00010014,2]
[323411854,1713973832513,-146.13981104,0.00010015,2]
[323411855,1713973832560,-221.86018896,0.00010015,2]
[323411856,1713973832569,-155.0,0.00010015,2]
[323411857,1713973832579,-4411.7189185,0.00010015,2]
[323411858,1713973832589,-4332.58774671,0.00010015,2]
[323411859,1713973832598,-379.07907876,0.00010016,2]
[323411860,1713973832608,-1512.25406707,0.00010016,2]
[323411861,1713973832621,-9056.23705678,0.00010016,2]
[323411862,1713973832630,-250.0,0.00010019,2]
[323411863,1713973832640,-1000.0,0.00010033,2]
[323411864,1713973832650,-150.0,0.00010145,2]
[323411865,1713973832659,-150.0,0.00010145,2]
[323411866,1713973832668,-8636.8165535,0.00010146,2]
[323411867,1713973832694,-5768.09152355,0.00010146,2]
[323411868,1713973832706,-6127.228,0.00010146,2]
[323411869,1713973832717,-3357.86392295,0.00010146,2]
[323411870,1713973832726,-1308.71708352,0.00010146,2]
[323411871,1713973832738,-1487.08291648,0.00010146,2]
[323411872,1713973832747,-499.99,0.00010146,2]
[323411873,1713973832756,-154.3,0.00010384,2]
[323411874,1713973832766,-241.41927156,0.00010408,2]
[323411875,1713973832775,-154.3,0.00010438,2]
[323411876,1713973832784,-173.01,0.00010454,2]
[323411877,1713973832794,-536.93,0.00010462,2]
[323411878,1713973832802,-2052.81,0.00010472,2]
[323411879,1713973832812,-939.99,0.00010472,2]
[323411880,1713973832822,-154.3,0.00010492,2]
[323411881,1713973832831,-154.3,0.00010546,2]
[323411882,1713973832840,-154.3,0.000106,2]
[323411883,1713973832850,-154.3,0.00010655,2]
[323411884,1713973832859,-154.3,0.00010709,2]
[323411885,1713973832870,-154.3,0.00010763,2]
[323411886,1713973832879,-154.3,0.00010817,2]
[323411887,1713973832889,-154.3,0.00010871,2]
[323411888,1713973832898,-154.3,0.00010925,2]
[323411889,1713973832906,-620.98932752,0.00010956,2]
[323411890,1713973832916,-155.0,0.00010956,2]
[323411891,1713973832925,-313.7807292,0.00010956,2]
[323411892,1713973832935,-3759.60382736,0.00010956,2]
[323411893,1713973832945,-155.0,0.00010956,2]
[323411894,1713973832954,-2179.73737234,0.00010956,2]
[323411895,1713973832964,-325.7152054,0.00010956,2]
[323411896,1713973832974,-200.30895975,0.00010956,2]
[323411897,1713973832983,-1351.61703,0.00010956,2]
[323411898,1713973832993,-710.12510258,0.00010956,2]
[323411899,1713973833002,-4729.32229821,0.00010956,2]
[323411900,1713973833011,-206.77986672,0.00010956,2]
[323411901,1713973833021,-343.3536616,0.00010956,2]
[323411902,1713973833031,-684.19475722,0.00010956,2]
[323411903,1713973833040,-164.51530542,0.00010956,2]
[323411904,1713973833050,-1608.51939142,0.00010956,2]
[323411905,1713973833059,-39601.72497722,0.00010957,2]
[323411906,1713973833102,-308.52793244,0.00010957,2]
[323411907,1713973833112,-851.99998,0.00010957,2]
[323411933,1713973838168,-194.42275138,0.00010013,2]
[323411934,1713973838180,-61.9154328,0.00010856,2]
[323411935,1713973838193,-352.59371748,0.00010856,2]
[323411936,1713973838206,-116.12434972,0.00010856,2]
[323411937,1713973838216,-268.10474388,0.00010957,2]
[323411938,1713973838234,-1852.059996,0.00010957,2]
[323411939,1713973838357,-526.01599995,0.00010957,2]
[323411940,1713973838373,-490.959078,0.00010957,2]
[323411941,1713973838388,-648.67387992,0.00010957,2]
[323411942,1713973838423,-2689.56273479,0.00010957,2]
[323411944,1713973838495,-5408.34506163,0.00010957,2]
[323411945,1713973838506,-1016.03589881,0.00010958,2]
[323411946,1713973838516,-253.98374418,0.00010958,2]
[323411947,1713973838526,-500.0,0.00010958,2]
[323411948,1713973838537,-667.29,0.00010958,2]
[323411949,1713973838549,-500.0,0.00010958,2]
[323411951,1713973838559,-327.17323977,0.00010958,2]
[323411953,1713973838569,-500.0,0.00010958,2]
[323411955,1713973838580,-500.0,0.00010958,2]
[323411957,1713973838591,-500.0,0.00010958,2]
[323411959,1713973838602,-22.28974519,0.00010958,2]
[323411962,1713973838614,-477.71025481,0.00010958,2]
[323411965,1713973838627,-511.95,0.00010958,2]
[323411968,1713973838637,-404.33654249,0.00010958,2]
[323411970,1713973838651,-95.66345751,0.00010958,2]
[323411972,1713973838661,-500.0,0.00010958,2]
[323411975,1713973838671,-500.0,0.00010958,2]
[323411977,1713973838682,-69.93654249,0.00010958,2]
[323412122,1713973840234,-613.46221154,0.00010958,2]
[323412125,1713973840247,-266.11124597,0.00010958,2]
[323412127,1713973840257,-500.0,0.00010958,2]
[323412129,1713973840268,-500.0,0.00010958,2]
[323412131,1713973840278,-500.0,0.00010958,2]
[323412133,1713973840288,-500.0,0.00010958,2]
[323412135,1713973840299,-563.58,0.00010958,2]
[323412137,1713973840308,-392.35920343,0.00010958,2]
[323412139,1713973840319,-500.0,0.00010958,2]
[323412142,1713973840330,-500.0,0.00010958,2]
[323412144,1713973840340,-500.0,0.00010958,2]
[323412201,1713973840845,-500.0,0.00010958,2]
[323412204,1713973840870,-500.0,0.00010958,2]
[323412207,1713973840891,-500.0,0.00010958,2]
[323412210,1713973840907,-272.1495506,0.00010958,2]
[323412212,1713973840921,-227.8504494,0.00010958,2]
[323412214,1713973840930,-582.8,0.00010958,2]
[323412216,1713973840939,-472.06133,0.00010958,2]
[323412332,1713973842268,544.37674793,9.783e-05,2]
[323412359,1713973842516,-1048.582763,0.00010858,2]
[323412367,1713973842584,-797.74364452,0.00010858,2]
[323412375,1713973842650,-57.98929248,0.00010858,2]
[323412377,1713973842660,-309.38774396,0.00010957,2]
[323412379,1713973842670,-27.93867,0.00010958,2]
[323412381,1713973842680,-345.56,0.00010958,2]
[323412383,1713973842690,-500.0,0.00010958,2]
[323412385,1713973842699,-500.0,0.00010958,2]
[323412387,1713973842709,-500.0,0.00010958,2]
[323412389,1713973842719,-500.0,0.00010958,2]
[323412391,1713973842729,-500.0,0.00010958,2]
[323412393,1713973842739,-500.0,0.00010958,2]
[323412395,1713973842748,-488.24859565,0.00010958,2]
[323412398,1713973842761,-11.75140435,0.00010958,2]
[323412400,1713973842771,-188.88,0.00010958,2]
[323412402,1713973842781,-500.0,0.00010958,2]
[323412404,1713973842791,-820.37,0.00010958,2]
[323412406,1713973842801,-500.0,0.00010958,2]
[323412408,1713973842810,-500.0,0.00010958,2]
[323412410,1713973842820,-500.0,0.00010958,2]
[323412412,1713973842830,-500.0,0.00010958,2]
[323412414,1713973842840,-500.0,0.00010958,2]
[323412416,1713973842850,-500.0,0.00010958,2]
[323412418,1713973842860,-500.0,0.00010958,2]
[323412420,1713973842873,-500.0,0.00010958,2]
[323412422,1713973842885,-414.0,0.00010958,2]
[323412424,1713973842895,-500.0,0.00010958,2]